bitfinex/quotes_ETHUSD_20241223
["timestamp","ask_amount","ask_price","bid_price","bid_amount"]
[1734935732903,1.81676017,3275.1,3274.6,3.97203122]
[1734935733224,1.81676017,3275.1,3274.7,0.55]
[1734935733382,1.81676017,3275.1,3274.8,1.0544]
[1734935733586,2.29612448,3275.8,3275.3,1.0544]
[1734935733906,2.29612448,3275.8,3275.7,5.57643122]
[1734935734056,1.81839646,3275.8,3275.7,5.57643122]
[1734935734453,1.21854061,3276.0,3275.8,0.55]
[1734935734699,3.05098,3277.7,3275.8,0.55]
[1734935734700,6.07901363,3277.6,3275.8,0.55]
[1734935734854,3.02793363,3277.6,3277.2,1.0544]
[1734935735056,3.02793363,3277.6,3277.3,0.55]
[1734935735302,0.27296297,3277.5,3277.3,0.55]
[1734935735594,3.02793363,3278.5,3277.3,0.55]
[1734935735801,3.02793363,3278.5,3278.4,3.97203122]
[1734935736100,3.02793363,3278.5,3277.9,3.97203122]
[1734935736408,3.05122,3277.4,3276.9,3.97203122]
[1734935736607,3.05135,3277.3,3276.9,3.97203122]
[1734935737558,3.05157,3277.0,3276.6,1.0544]
[1734935737793,6.1009,3278.2,3276.6,1.0544]
[1734935737794,3.05131,3277.3,3276.6,1.0544]
[1734935737992,3.0,3278.0,3276.9,3.97203122]
[1734935738462,3.05152,3277.1,3276.9,3.97203122]
[1734935738965,3.05152,3277.1,3276.6,1.0544]
[1734935739415,3.05116,3277.5,3276.6,1.0544]
[1734935739416,3.05162,3277.0,3276.6,1.0544]
[1734935739718,3.05171,3276.9,3276.6,1.0544]
[1734935740060,3.05144,3277.2,3276.6,1.0544]
[1734935740264,3.05115,3277.5,3276.9,3.97203122]
[1734935740683,3.02793363,3277.7,3276.9,3.97203122]
[1734935741006,3.05083,3277.8,3276.9,3.97203122]
[1734935741310,3.05104,3277.6,3276.9,3.97203122]
[1734935741715,3.05124,3277.4,3276.9,3.97203122]
[1734935742413,3.05132,3277.3,3276.9,3.97203122]
[1734935742575,3.05106,3277.6,3276.9,3.97203122]
[1734935742782,2.44103716,3278.0,3276.9,3.97203122]
[1734935742997,2.44103716,3277.9,3276.9,3.97203122]
[1734935743325,3.05106,3277.6,3276.9,3.97203122]
[1734935743685,3.05114,3277.5,3276.9,3.97203122]
[1734935743888,2.44103716,3278.0,3277.0,0.55]
[1734935744079,1.83046529,3277.8,3277.0,0.55]
[1734935744485,1.83046529,3277.8,3276.6,1.0544]
[1734935744680,3.05116,3277.5,3276.7,0.55]
[1734935744884,4.88131529,3277.8,3276.7,0.55]
[1734935745123,3.05085,3277.8,3276.7,0.55]
[1734935745625,3.05104,3277.6,3276.7,0.55]
[1734935746614,3.0513,3277.3,3276.6,5.02643122]
[1734935747125,3.05092,3277.7,3276.6,5.02643122]
[1734935747524,1.83046529,3277.8,3276.6,5.02643122]
[1734935747731,3.05134,3277.3,3276.6,5.02643122]
[1734935748083,3.0,3277.6,3276.6,3.97203122]
[1734935748283,4.83046529,3277.9,3275.9,1.0206]
[1734935748284,3.05142,3277.2,3276.1,3.97203122]
[1734935748510,3.0511,3277.5,3276.1,3.97203122]
[1734935748713,3.05149,3277.1,3276.1,3.97203122]
[1734935749323,3.05125,3277.4,3276.6,3.97203122]
[1734935749501,1.83046529,3277.6,3276.7,1.0051]
[1734935749891,4.88149529,3277.6,3276.7,1.0051]
[1734935750090,3.05116,3277.5,3276.8,0.55]
[1734935750702,1.83046529,3278.2,3277.2,3.97203122]
[1734935750902,1.83046529,3278.2,3277.8,3.97203122]
[1734935751115,1.83046529,3278.3,3277.8,3.97203122]
[1734935751301,1.83046529,3278.3,3278.0,1.074]
[1734935751501,1.83046529,3278.3,3278.1,0.55]
[1734935751823,3.04983,3278.9,3278.0,1.074]
[1734935752395,3.04958,3279.2,3278.3,3.97203122]
[1734935752594,3.04947,3279.3,3278.4,0.55]
[1734935752788,4.87962529,3279.6,3278.8,3.97203122]
[1734935753007,1.83046529,3279.6,3278.9,1.074]
[1734935753219,1.83046529,3279.7,3278.9,1.074]
[1734935753490,3.04917,3279.6,3278.9,1.074]
[1734935753697,3.04927,3279.5,3278.9,1.074]
[1734935754631,3.04896,3279.8,3278.9,1.074]
[1734935754790,3.0498,3278.9,3278.4,1.074]
[1734935754992,3.05039,3278.3,3277.9,1.074]
[1734935755194,1.0563,3279.4,3277.9,1.074]
[1734935755522,3.05002,3278.7,3278.3,3.97203122]
[1734935756347,3.0,3279.5,3278.3,3.97203122]
[1734935756512,3.04992,3278.8,3278.3,3.97203122]
[1734935756829,3.05,3278.7,3278.3,3.97203122]
[1734935757147,1.83046529,3279.4,3278.3,3.97203122]
[1734935757348,4.83046529,3279.4,3278.3,3.97203122]
[1734935757568,3.05023,3278.5,3278.3,3.97203122]
[1734935757775,3.05073,3277.9,3277.8,3.97203122]
[1734935758044,3.05096,3277.7,3276.9,1.5715]
[1734935758244,3.05056,3278.1,3277.3,3.97203122]
[1734935758750,0.2729317,3278.0,3277.3,3.97203122]
[1734935759347,3.3236117,3278.0,3277.3,3.97203122]
[1734935759640,3.3236117,3278.0,3277.4,0.55]
[1734935759814,3.05083,3277.8,3277.4,0.55]
[1734935760329,0.2729317,3277.9,3277.4,0.55]
[1734935760506,0.2729317,3277.7,3277.4,0.55]
[1734935760903,0.2729317,3277.9,3277.4,0.55]
[1734935761117,0.2729317,3277.9,3277.8,5.60413122]
[1734935761340,0.2729317,3277.9,3277.4,1.5578]
[1734935761543,3.0511,3277.5,3277.3,3.97203122]
[1734935761704,1.646,3278.2,3276.9,1.5578]
[1734935761913,3.05078,3277.9,3277.3,3.97203122]
[1734935762237,3.05093,3277.7,3277.3,3.97203122]
[1734935762551,0.2729317,3277.6,3277.3,3.97203122]
[1734935763049,0.2729317,3277.5,3277.3,3.97203122]
[1734935763424,3.3240317,3277.5,3277.3,3.97203122]
[1734935763624,0.2729317,3277.4,3277.3,3.97203122]
[1734935764065,3.05156,3277.1,3276.9,1.5578]
[1734935764767,0.2729317,3277.0,3276.9,1.5578]
[1734935766646,0.2729317,3277.0,3276.9,2.3578]
[1734935767527,0.2729317,3277.0,3276.9,2.1078]
[1734935769331,1.83046529,3278.9,3277.7,1.6163]
[1734935769650,1.83046529,3278.9,3277.8,3.97203122]
[1734935769847,3.0502,3278.5,3277.8,3.97203122]
[1734935770430,1.83046529,3279.0,3277.8,3.97203122]
[1734935770632,3.04989,3278.8,3277.8,3.97203122]
[1734935770830,3.05026,3278.5,3277.9,0.55]
[1734935771868,4.88026529,3278.9,3277.8,3.97203122]
[1734935772095,3.05034,3278.4,3277.8,3.97203122]
[1734935772238,1.83046529,3278.9,3277.8,3.97203122]
[1734935772440,3.05057,3278.1,3277.8,3.97203122]
[1734935772652,3.05039,3278.3,3277.8,3.97203122]
[1734935772859,3.05013,3278.6,3277.9,0.55]
[1734935773242,1.83046529,3278.8,3277.9,0.55]
[1734935773586,1.83046529,3278.4,3277.8,3.97203122]
[1734935774155,3.05056,3278.1,3277.8,0.55]
[1734935774491,3.0,3278.3,3276.4,5.55993122]
[1734935774737,3.0,3277.9,3276.4,1.5879]
[1734935774909,3.05163,3277.0,3276.4,1.5879]
[1734935775202,1.83046529,3276.8,3276.4,5.55993122]
[1734935775563,1.83046529,3276.8,3276.5,0.25]
[1734935775957,1.83046529,3276.8,3276.4,5.80993122]
[1734935776498,3.05129,3277.4,3276.4,5.80993122]
[1734935776499,1.83046529,3276.6,3276.4,5.55993122]
[1734935777149,3.05271,3275.8,3275.4,1.6263]
[1734935777394,3.05279,3275.7,3275.4,1.6263]
[1734935778099,3.05296,3275.5,3275.4,1.6263]
[1734935778313,3.05283,3275.7,3275.4,1.6263]
[1734935778522,3.63352035,3275.6,3275.4,1.6263]
[1734935778721,6.68639035,3275.6,3275.4,1.6263]
[1734935779573,3.05287,3275.6,3275.4,1.6263]
[1734935779816,4.23517856,3275.7,3274.9,1.5918]
[1734935780124,5.81107856,3275.7,3274.7,0.005]
[1734935780347,3.05343,3275.0,3274.7,0.005]
[1734935780623,3.05353,3274.9,3274.7,0.005]
[1734935780999,3.70598256,3274.8,3274.7,0.005]
[1734935781206,5.34698256,3274.8,3274.7,1e-05]
[1734935781522,8.62224534,3274.8,3274.7,1e-05]
[1734935781682,12.16987534,3274.8,3274.7,1e-05]
[1734935782083,12.16987534,3274.8,3272.6,1.575]
[1734935782084,3.05525,3273.1,3272.6,1.575]
[1734935782291,1.641,3273.5,3272.0,1.575]
[1734935782505,3.05563,3272.7,3272.0,1.575]
[1734935782713,1.641,3273.5,3272.0,1.575]
[1734935782714,3.05532,3273.0,3272.0,1.575]
[1734935782988,0.27526278,3272.6,3272.0,1.575]
[1734935783408,0.27526278,3272.5,3272.0,1.575]
[1734935783606,1.8451049,3272.4,3272.0,1.575]
[1734935784298,3.0556,3272.7,3272.0,1.575]
[1734935784515,1.8451049,3272.8,3272.0,1.575]
[1734935784896,0.2728555,3272.7,3272.0,1.575]
[1734935785097,3.05579,3272.5,3271.8,0.005]
[1734935785318,2.1179604,3272.7,3271.8,0.005]
[1734935785598,0.2728555,3272.4,3271.8,0.005]
[1734935786041,4.5341,3273.0,3271.8,0.005]
[1734935786245,3.05614,3272.1,3271.8,0.005]
[1734935786552,1.5341,3273.0,3271.8,0.005]
[1734935786553,1.6186,3272.2,3271.8,0.005]
[1734935786738,3.05632,3271.9,3271.8,0.005]
[1734935787329,3.32870179,3271.9,3271.8,0.005]
[1734935788033,1.8451049,3272.2,3271.8,0.005]
[1734935788755,1.5652,3272.7,3271.8,0.005]
[1734935788919,3.05559,3272.7,3271.8,1.5206]
[1734935789861,3.05569,3272.6,3271.8,0.005]
[1734935790240,3.05542,3272.9,3271.9,1.5156]
[1734935790437,3.05542,3272.9,3271.8,0.005]
[1734935790438,3.0,3272.6,3271.8,0.005]
[1734935790644,3.05552,3272.8,3271.8,0.005]
[1734935790970,4.5652,3273.2,3271.8,0.005]
[1734935791137,3.05154151,3272.7,3271.8,0.005]
[1734935791319,4.5652,3273.2,3271.8,0.005]
[1734935791524,3.05579,3272.5,3271.8,0.005]
[1734935791935,4.5652,3273.2,3271.8,0.005]
[1734935792330,3.0,3273.0,3271.8,0.005]
[1734935792535,1.5563,3273.1,3271.8,0.005]
[1734935792736,3.05621,3272.1,3271.8,0.005]
[1734935793274,3.05589,3272.4,3271.8,0.005]
[1734935794257,4.5563,3273.1,3271.8,0.005]
[1734935794258,3.05564,3272.7,3271.8,0.005]
[1734935794557,3.05559,3272.7,3271.8,1.6672]
[1734935794763,1.5563,3273.1,3271.8,1.6672]
[1734935794764,3.05571,3272.6,3271.8,1.6672]
[1734935794964,3.05587,3272.4,3271.8,1.6672]
[1734935795124,3.05608,3272.2,3271.8,1.6672]
[1734935795320,3.05547,3272.9,3271.8,0.005]
[1734935795641,3.05625,3272.0,3271.8,0.005]
[1734935796440,1.523,3272.7,3271.8,0.005]
[1734935796651,3.05623,3272.0,3271.8,0.005]
[1734935796852,7.447,3271.9,3271.8,1e-05]
[1734935797048,11.80861497,3271.9,3271.8,1e-05]
[1734935797227,11.80861497,3271.9,3270.4,0.1696234]
[1734935797228,3.05763,3270.5,3270.4,0.1696234]
[1734935797863,4.69597,3270.7,3270.4,0.1696234]
[1734935798078,4.66989,3271.3,3270.4,0.1696234]
[1734935798286,3.05718,3271.0,3270.5,1.6054]
[1734935798433,3.0567,3271.5,3270.5,1.6054]
[1734935798641,3.05686,3271.4,3270.5,1.6054]
[1734935798861,1.8451049,3271.9,3270.5,1.78290234]
[1734935799034,3.05678,3271.5,3270.5,1.6054]
[1734935799235,1.6342,3272.1,3270.5,1.6054]
[1734935799434,3.05663,3271.6,3270.5,1.6054]
[1734935800089,3.05673,3271.5,3270.6,0.55]
[1734935800265,3.05648,3271.8,3270.6,0.55]
[1734935800578,3.05657,3271.7,3270.6,0.55]
[1734935800783,3.05673,3271.5,3270.6,0.55]
[1734935800998,3.0565,3271.8,3270.5,1.6054]
[1734935801197,3.05646,3271.8,3270.6,0.55]
[1734935801405,3.05662,3271.6,3270.6,0.55]
[1734935801758,3.05639,3271.9,3270.6,0.55]
[1734935801959,3.05642,3271.8,3270.6,0.55]
[1734935802175,3.05661,3271.6,3270.6,0.55]
[1734935803457,1.6342,3272.1,3270.6,0.55]
[1734935803890,0.27191709,3272.0,3270.6,0.55]
[1734935804295,3.32824709,3271.9,3270.5,1.6054]
[1734935804496,3.05669,3271.6,3270.5,1.6054]
[1734935804716,3.05669,3271.6,3270.6,0.55]
[1734935804997,0.27191709,3271.5,3270.6,0.55]
[1734935805169,3.32865709,3271.5,3270.6,0.55]
[1734935805492,0.27191709,3271.5,3270.5,1.6054]
[1734935805696,0.27191709,3271.4,3270.5,1.6054]
[1734935806004,3.05698,3271.2,3270.5,1.6054]
[1734935806204,3.05714,3271.1,3270.5,1.6054]
[1734935806373,3.32905709,3271.1,3270.5,1.6054]
[1734935807204,3.32908709,3271.0,3270.5,1.6054]
[1734935807407,0.27191709,3271.0,3270.4,0.1696234]
[1734935807591,3.05727,3270.9,3270.4,0.1696234]
[1734935807904,0.27191709,3270.9,3270.4,0.1696234]
[1734935808267,3.05693,3271.3,3270.4,0.1696234]
[1734935808268,3.32927709,3270.8,3270.4,0.1696234]
[1734935808690,3.05748,3270.7,3270.4,0.1696234]
[1734935808909,0.27191709,3270.7,3270.4,0.1696234]
[1734935809209,0.27191709,3270.7,3270.0,0.11]
[1734935809407,3.05765,3270.5,3270.0,0.11]
[1734935809607,3.05801,3270.1,3270.0,0.11]
[1734935809807,0.27191709,3270.6,3270.0,0.11]
[1734935810006,3.05791,3270.3,3270.0,0.11]
[1734935810207,0.27191709,3270.4,3270.0,0.11]
[1734935810503,0.27191709,3270.2,3270.0,0.11]
[1734935810707,0.27191709,3270.1,3270.0,0.11]
[1734935811782,3.32992709,3270.1,3270.0,0.11]
[1734935813078,3.05801,3270.1,3270.0,0.11]
[1734935814320,7.66201,3270.1,3270.0,1e-05]
[1734935816143,6.05801,3270.1,3270.0,1e-05]
[1734935818234,6.33282865,3270.1,3270.0,1e-05]
[1734935818601,7.84252865,3270.1,3270.0,1e-05]
[1734935819103,7.84252865,3270.1,3268.5,1.5898]
[1734935819104,3.0,3270.0,3268.5,1.5898]
[1734935819335,3.05886,3269.2,3268.5,1.5898]
[1734935819942,0.86746031,3269.1,3268.5,1.5898]
[1734935820259,0.86746031,3269.1,3268.5,1.74878]
[1734935820407,0.71429922,3269.0,3268.8,0.55]
[1734935820752,0.86746031,3269.0,3268.7,1.5539]
[1734935821099,0.71429922,3268.9,3268.7,1.5539]
[1734935821546,0.86746031,3268.9,3268.7,1.5539]
[1734935821733,0.71429922,3268.8,3268.7,1.5539]
[1734935822318,0.86745122,3268.8,3268.7,1.5539]
[1734935831466,3.32759109,3268.8,3268.7,1.5539]
[1734935832366,0.86745122,3268.8,3268.7,1.5539]
[1734935832760,0.86745122,3268.8,3267.8,2.151]
[1734935832928,3.05933,3268.7,3268.4,0.61654387]
[1734935833252,0.153152,3268.7,3268.4,0.61654387]
[1734935833453,0.71429922,3268.6,3267.7,0.3783879]
[1734935833770,7.56196,3267.8,3267.7,0.3783879]
[1734935834063,3.0,3267.0,3266.9,2.55442076]
[1734935834235,3.0,3267.0,3266.9,1.89005893]
[1734935834442,3.0,3267.0,3266.9,0.9321065]
[1734935834443,3.86745122,3267.0,3266.9,0.9321065]
[1734935834766,0.86745122,3267.0,3266.9,0.9321065]
[1734935835127,3.86745122,3267.0,3266.9,6.5e-06]
[1734935835329,3.06156,3266.4,3265.1,1.5358]
[1734935835558,1.5734,3266.7,3265.2,0.153581]
[1734935835756,3.06183,3266.1,3265.1,1.5358]
[1734935835927,0.27469852,3266.6,3265.4,0.61783228]
[1734935836152,0.27469852,3266.6,3265.5,1.6031]
[1734935836452,0.27469852,3266.5,3265.5,1.6031]
[1734935836839,0.27469852,3266.4,3266.3,0.59749313]
[1734935837039,0.27469852,3266.4,3266.3,2.20059313]
[1734935838388,1.83838542,3267.4,3266.3,1.6031]
[1734935838692,3.06159,3266.3,3265.2,1.6031]
[1734935838891,3.0,3266.5,3265.3,0.6076627]
[1734935839234,3.06142,3266.5,3265.3,0.6076627]
[1734935839467,0.27425566,3266.4,3265.3,0.6076627]
[1734935839986,0.27425566,3266.3,3265.3,0.6076627]
[1734935840135,0.27425566,3266.3,3265.3,0.82873897]
[1734935840337,0.27425566,3266.3,3265.4,2.1962]
[1734935840683,1.83838542,3266.9,3265.8,0.55]
[1734935841034,0.27377494,3266.8,3265.8,0.55]
[1734935841333,0.27377494,3266.8,3265.7,1.6462]
[1734935841733,0.27377494,3266.7,3265.7,2.24883918]
[1734935842037,0.27377494,3266.7,3265.8,0.55]
[1734935842365,0.27377494,3266.7,3265.7,2.4737231]
[1734935842366,0.27377494,3266.6,3266.0,0.55]
[1734935842786,0.27377494,3266.5,3265.9,1.5121]
[1734935843286,0.27377494,3266.4,3265.9,1.5121]
[1734935843433,0.27377494,3266.4,3266.0,0.21301896]
[1734935843635,0.27377494,3266.4,3266.1,1.6199]
[1734935843877,3.0604,3267.6,3266.1,1.6199]
[1734935844079,2.45118057,3267.8,3266.1,1.6199]
[1734935844244,1.5084,3267.6,3266.1,1.6199]
[1734935844445,3.06083,3267.1,3266.1,1.6199]
[1734935844644,3.0606,3267.4,3266.1,1.78189]
[1734935844863,2.733916,3267.6,3266.1,1.78189]
[1734935845063,0.27372737,3267.3,3266.1,1.78189]
[1734935845485,0.27372737,3267.2,3266.2,2.1798]
[1734935846188,0.27372737,3267.6,3266.6,0.55]
[1734935846385,0.27372737,3267.1,3266.8,0.55]
[1734935846537,0.27372737,3267.1,3267.0,2.1798]
[1734935846741,2.45118057,3268.3,3267.2,3.06072]
[1734935846988,2.45118057,3268.3,3267.4,0.55]
[1734935847199,2.45118057,3268.3,3267.6,0.55]
[1734935848554,1.6078,3269.1,3267.6,0.55]
[1734935848754,3.05926,3268.8,3267.6,0.55]
[1734935850182,3.05902,3269.1,3267.6,0.55]
[1734935850359,3.05902,3269.1,3267.8,0.55]
[1734935851058,8.50992057,3269.4,3268.0,0.55]
[1734935851388,3.0,3269.2,3268.0,0.55]
[1734935851588,3.05913,3268.9,3267.9,1.5342]
[1734935851881,3.05913,3268.9,3265.9,3.06193]
[1734935851882,3.0,3268.6,3267.4,1.5124]
[1734935852088,3.0597,3268.3,3267.4,1.5124]
[1734935852497,3.05978,3268.3,3267.4,1.5124]
[1734935852776,3.05978,3268.3,3266.6,3.06125]
[1734935852777,3.06024,3267.8,3266.6,0.61527526]
[1734935852960,3.06001,3268.0,3266.7,1.5607]
[1734935853283,1.5202,3268.8,3266.0,1000.0]
[1734935853284,4.96303034,3267.9,3266.0,1000.0]
[1734935853496,3.0,3267.5,3266.0,1000.0]
[1734935853709,1.96303034,3267.9,3266.0,1000.0]
[1734935853920,3.06062,3267.4,3266.1,1.5607]
[1734935854064,6.06018,3267.8,3266.1,1.5607]
[1734935854065,3.06063,3267.3,3266.1,1.5607]
[1734935854498,2.45118057,3267.8,3266.1,1.5607]
[1734935854499,3.0608,3267.2,3266.1,1.5607]
[1734935854696,3.06083,3267.1,3266.1,1.5607]
[1734935855577,3.0,3267.3,3266.1,1.5607]
[1734935855778,3.06083,3267.1,3266.1,1.5607]
[1734935856377,3.0606,3267.4,3266.2,0.55]
[1734935857080,3.06092,3267.0,3266.1,1.5607]
[1734935857274,3.06067,3267.3,3266.2,0.55]
[1734935857823,5.51136057,3267.8,3266.5,0.55]
[1734935858138,2.45118057,3267.8,3266.7,0.55]
[1734935858332,2.45118057,3267.8,3266.8,1.6624]
[1734935858626,5.51127057,3267.9,3266.8,1.6624]
[1734935858818,5.51127057,3267.9,3266.7,0.55]
[1734935858819,0.27427844,3267.7,3266.9,0.55]
[1734935858991,0.27427844,3267.7,3267.0,1.6413]
[1734935859608,0.27427844,3267.6,3267.0,1.6413]
[1734935859810,0.27427844,3267.6,3267.1,0.55]
[1734935860134,0.27427844,3268.1,3267.1,0.55]
[1734935861685,0.27427844,3268.1,3267.5,0.55]
[1734935861884,0.27427844,3268.4,3267.9,2.0703]
[1734935862620,0.27427844,3268.4,3267.9,1.5203]
[1734935863323,0.27427844,3268.9,3267.9,1.5203]
[1734935863539,3.45894536,3268.7,3266.7,1.518]
[1734935863822,3.06022,3267.8,3266.7,1.518]
[1734935864180,3.0,3268.2,3266.7,1.518]
[1734935864507,0.27427844,3267.7,3266.7,1.518]
[1734935864824,3.06013,3267.9,3266.7,1.518]
[1734935864992,0.27427844,3268.2,3266.8,0.55]
[1734935865196,3.06002,3268.0,3266.9,0.55]
[1734935865710,0.27427844,3267.9,3266.9,0.55]
[1734935866624,0.27427844,3267.9,3267.1,0.55]
[1734935866827,6.13492484,3268.3,3267.3,0.55]
[1734935866828,0.27427844,3268.0,3267.3,0.55]
[1734935867529,0.27427844,3268.1,3267.3,0.55]
[1734935867690,0.27427844,3268.1,3267.2,1.6001]
[1734935868280,3.33424844,3268.1,3267.2,1.6001]
[1734935868480,0.27427844,3268.1,3267.2,1.6001]
[1734935868733,3.0,3268.3,3267.2,1.6001]
[1734935868734,0.27427844,3268.0,3267.2,1.6001]
[1734935869377,0.27427844,3267.9,3267.2,1.6001]
[1734935870123,0.27427844,3267.8,3267.2,1.6001]
[1734935870520,0.27427844,3268.0,3267.2,1.6001]
[1734935870826,3.33425844,3268.0,3267.2,1.6001]
[1734935870991,0.27427844,3267.9,3267.2,1.6001]
[1734935871526,0.27427844,3267.9,3267.2,1.76011]
[1734935872022,0.27427844,3268.1,3267.2,1.76011]
[1734935872233,0.27427844,3268.1,3267.2,1.6001]
[1734935872522,0.27427844,3268.0,3267.2,1.6001]
[1734935872883,0.27427844,3268.3,3267.3,0.55]
[1734935873428,0.27427844,3268.3,3268.2,0.55]
[1734935873628,0.27427844,3268.4,3268.2,0.55]
[1734935874314,0.75292364,3268.4,3268.2,0.55]
[1734935874519,0.17915577,3268.4,3268.3,4.00894536]
[1734935874683,2.45118057,3269.1,3269.0,2.1612]
[1734935875027,2.45118057,3269.1,3269.0,5.22023]
[1734935875499,2.45118057,3269.6,3269.0,2.1612]
[1734935875695,2.45118057,3269.6,3269.1,0.55]
[1734935876319,2.45118057,3269.6,3269.3,0.55]
[1734935876498,1.48990312,3269.6,3269.5,0.55]
[1734935876682,0.36517232,3269.6,3269.5,5.18057]
[1734935876882,0.36517232,3270.5,3269.8,0.55]
[1734935877710,0.2749985,3270.4,3269.8,0.55]
[1734935877898,0.2749985,3270.4,3269.9,1.572]
[1734935878099,0.2749985,3270.4,3270.0,0.55]
[1734935879387,0.2749985,3270.4,3270.0,1.5091]
[1734935880429,0.2749985,3270.4,3270.1,0.55]
[1734935880731,0.2749985,3270.4,3270.0,4.57098]
[1734935881031,0.2749985,3270.4,3270.1,1.062098]
[1734935881233,0.2749985,3270.4,3270.1,0.55]
[1734935881557,0.2749985,3270.4,3268.9,3.05905]
[1734935881767,0.2749985,3270.4,3269.3,1.5129]
[1734935882057,3.05848,3269.6,3268.9,1.5129]
[1734935882261,4.64736,3269.9,3268.9,1.5129]
[1734935882416,3.05744,3270.7,3268.9,1.5129]
[1734935882622,4.5085,3270.8,3268.9,1.5129]
[1734935882854,7.5659,3270.8,3269.3,1.596]
[1734935883030,3.07517484,3270.7,3269.3,1.596]
[1734935883230,3.07517484,3270.7,3269.4,0.55]
[1734935883533,6.13262484,3270.7,3269.5,1.596]
[1734935883732,3.07517484,3270.7,3269.6,0.55]
[1734935883928,3.05736,3270.8,3269.6,0.55]
[1734935884435,3.05736,3270.8,3269.6,0.7646]
[1734935885311,3.05714,3271.1,3269.8,0.55]
[1734935885516,3.05718,3271.0,3269.8,0.55]
[1734935885746,3.05698,3271.2,3269.8,0.55]
[1734935886260,4.56198,3271.5,3270.0,0.55]
[1734935886414,3.05726,3270.9,3269.7,1.542]
[1734935886619,3.0582,3269.9,3269.3,1.542]
[1734935886820,3.05782,3270.3,3269.3,1.542]
[1734935887030,4.551,3270.8,3269.3,1.542]
[1734935887235,3.05757,3270.6,3269.3,1.542]
[1734935887464,3.0,3271.1,3269.3,1.542]
[1734935887798,0.27398744,3270.5,3269.3,1.6962]
[1734935888163,0.27398744,3271.0,3269.5,1.6241]
[1734935888463,0.27398744,3271.0,3269.9,1.6241]
[1734935888644,3.33105744,3271.1,3269.9,1.6241]
[1734935888958,0.27398744,3271.0,3269.9,1.6241]
[1734935889123,3.05729,3270.9,3269.9,1.6241]
[1734935889319,3.05729,3270.9,3269.9,2.22419183]
[1734935889664,0.27398744,3270.8,3269.9,1.6241]
[1734935890227,1.655,3271.6,3270.0,0.55]
[1734935890228,4.655,3271.6,3270.0,0.55]
[1734935890432,4.655,3271.6,3270.1,1.6056]
[1734935890638,3.05699,3271.2,3270.1,1.6056]
[1734935890916,3.0568,3271.4,3270.1,1.6056]
[1734935891240,3.0568,3271.4,3270.2,0.55]
[1734935891616,0.27364284,3271.3,3270.3,1.6056]
[1734935891941,3.05662,3271.6,3270.3,1.6056]
[1734935892336,0.27364284,3271.7,3270.3,1.6056]
[1734935892533,0.27364284,3271.5,3270.4,3.60769]
[1734935892732,0.27364284,3271.5,3270.5,1.5168]
[1734935892968,0.27364284,3271.5,3270.6,1.062449]
[1734935893150,3.05633,3271.9,3270.6,1.062449]
[1734935893347,4.10136879,3272.0,3270.6,1.062449]
[1734935893520,0.27336319,3271.8,3270.7,1.5558]
[1734935893723,0.27336319,3271.8,3270.9,2.1058]
[1734935894371,2.44976879,3272.5,3271.3,2.0874]
[1734935894670,5.50525879,3272.8,3271.4,3.45894536]
[1734935894838,0.27320998,3272.4,3271.5,1.25658154]
[1734935895163,0.27320998,3272.4,3271.5,0.55]
[1734935895381,0.27320998,3272.3,3271.5,0.55]
[1734935895567,0.27320998,3272.3,3271.4,1.5374]
[1734935895867,0.27320998,3272.2,3271.5,0.55]
[1734935896069,0.27320998,3272.2,3271.8,2.1726]
[1734935896275,0.27320998,3272.2,3272.1,5.63154536]
[1734935896574,2.44976879,3273.3,3272.2,0.55]
[1734935896780,3.05484,3273.5,3272.2,0.55]
[1734935897281,3.05484,3273.5,3272.4,0.55]
[1734935897436,3.05484,3273.5,3272.3,1.6226]
[1734935897437,0.27299146,3273.4,3272.3,1.6226]
[1734935897637,0.27299146,3273.4,3272.6,1.6]
[1734935897962,0.27299146,3273.4,3272.8,1.6]
[1734935898285,1.5007,3274.5,3273.0,1.6]
[1734935898465,3.0542,3274.2,3273.1,0.55]
[1734935898642,0.27258769,3274.4,3273.1,0.55]
[1734935898838,0.27258769,3274.4,3273.4,1.6]
[1734935899043,0.27258769,3274.3,3273.8,0.55]
[1734935899278,0.27258769,3274.3,3274.0,0.55]
[1734935899587,0.27258769,3274.3,3274.2,5.60894536]
[1734935899797,2.44976879,3275.2,3274.2,1.6]
[1734935899943,3.05357,3274.9,3274.2,1.6]
[1734935900348,3.05401,3274.4,3273.2,2.15]
[1734935900543,1.5007,3275.1,3273.5,5.60894536]
[1734935900785,1.5007,3275.5,3273.8,1.6]
[1734935901142,3.05386,3274.6,3273.8,1.6]
[1734935901568,3.47781795,3275.1,3273.8,1.6]
[1734935901787,3.05365,3274.8,3273.8,1.6]
[1734935902673,0.27262149,3274.7,3273.8,1.6]
[1734935903184,0.27262149,3274.6,3273.9,0.55]
[1734935903348,0.27262149,3274.6,3274.0,1.6378]
[1734935903760,0.27262149,3275.0,3274.0,1.6378]
[1734935903946,3.05352,3274.9,3274.0,1.6378]
[1734935904149,0.27262149,3274.9,3274.0,1.6378]
[1734935904690,3.05359,3274.9,3274.0,1.6378]
[1734935904886,0.27262149,3275.1,3274.0,1.6378]
[1734935905096,0.27262149,3274.8,3274.1,0.55]
[1734935905409,0.27262149,3275.4,3274.3,0.55]
[1734935905553,3.32569149,3275.4,3274.3,4.00894536]
[1734935905752,3.05319,3275.3,3274.3,4.00894536]
[1734935906249,3.05334,3275.1,3274.2,1.652]
[1734935906481,3.05346,3275.0,3274.2,1.652]
[1734935906714,3.05371,3274.7,3274.2,1.652]
[1734935906883,3.05371,3274.7,3273.8,1.5069]
[1734935906884,3.05372,3274.7,3273.8,1.5069]